bitfinex-derivatives/quotes_BTCF0:USTF0_20251216
["timestamp","ask_amount","ask_price","bid_price","bid_amount"]
[1765910882922,0.2118925,87873.0,87872.0,0.20171]
[1765910883110,0.2118925,87873.0,87870.0,0.3608]
[1765910883111,0.2615,87871.0,87870.0,0.3608]
[1765910883419,0.10079,87859.0,87858.0,0.21537091]
[1765910883618,0.2728828,87871.0,87870.0,0.10147]
[1765910884213,0.2728828,87871.0,87870.0,0.19144]
[1765910885428,0.18236,87874.0,87873.0,0.18111]
[1765910885819,0.73068,87874.0,87873.0,0.18111]
[1765910886426,0.18236,87865.0,87864.0,0.18111]
[1765910887726,0.18236,87865.0,87864.0,0.18211]
[1765910890025,0.0912,87865.0,87864.0,0.23758]
[1765910890431,0.18236,87865.0,87864.0,0.23758]
[1765910890822,0.18236,87865.0,87864.0,0.18211]
[1765910891528,0.18236,87865.0,87864.0,0.09214]
[1765910891727,0.18236,87865.0,87864.0,0.001]
[1765910891926,0.18236,87865.0,87864.0,0.18211]
[1765910892429,0.89716,87865.0,87864.0,0.23758]
[1765910892628,0.89716,87865.0,87864.0,0.18211]
[1765910893131,0.3608,87876.0,87869.0,0.18111]
[1765910893132,0.193743,87870.0,87869.0,0.18111]
[1765910893524,0.908543,87870.0,87869.0,0.18111]
[1765910893724,0.89716,87870.0,87869.0,0.18111]
[1765910895026,0.18236,87865.0,87864.0,0.3618]
[1765910895228,0.18236,87859.0,87858.0,0.18338641]
[1765910895426,0.18236,87859.0,87858.0,0.00227641]
[1765910895627,0.18236,87859.0,87858.0,0.18338641]
[1765910896432,0.18236,87859.0,87858.0,0.18438641]
[1765910896829,0.1937434,87867.0,87866.0,0.18111]
[1765910897131,0.62604,87867.0,87866.0,0.18111]
[1765910898023,0.62604,87867.0,87866.0,0.09114]
[1765910898222,0.23898,87864.0,87863.0,0.45194]
[1765910898434,0.23898,87864.0,87863.0,0.54191]
[1765910899133,0.18236,87864.0,87863.0,0.54191]
[1765910899438,0.18236,87872.0,87871.0,0.18111]
[1765910899638,0.73292,87872.0,87871.0,0.18111]
[1765910899940,0.0912,87872.0,87871.0,0.18111]
[1765910900234,0.71484,87873.0,87872.0,0.23658]
[1765910900433,0.71484,87873.0,87872.0,0.18111]
[1765910900434,0.8972,87873.0,87872.0,0.18111]
[1765910902336,0.2483326,87872.0,87871.0,0.3608]
[1765910902538,0.18236,87864.0,87863.0,0.54191]
[1765910902839,0.7261817,87880.0,87878.0,0.18111]
[1765910903035,0.09137065,87879.0,87878.0,0.18111]
[1765910904139,0.18253065,87879.0,87878.0,0.18111]
[1765910905831,0.18453065,87879.0,87878.0,0.18111]
[1765910906634,0.18353065,87879.0,87878.0,0.18111]
[1765910907434,0.18253065,87879.0,87878.0,0.18111]
[1765910908139,0.18236,87871.0,87870.0,0.00017065]
[1765910908344,0.54316,87871.0,87870.0,0.00017065]
[1765910908530,0.18236,87859.0,87855.0,0.3608]
[1765910908732,0.89712,87859.0,87858.0,0.18338641]
[1765910908937,0.80596,87859.0,87858.0,0.18338641]
[1765910909338,0.71476,87859.0,87858.0,0.18338641]
[1765910909537,0.54316,87871.0,87870.0,0.18111]
[1765910909739,1.2032628,87871.0,87870.0,0.18111]
[1765910909950,1.2032628,87871.0,87870.0,0.09114]
[1765910910446,0.0912,87861.0,87860.0,0.18210999]
[1765910910654,0.0912,87861.0,87860.0,0.18111]
[1765910911038,0.1937434,87867.0,87866.0,0.18111]
[1765910911934,0.9085034,87867.0,87866.0,0.18111]
[1765910916343,0.93688719,87867.0,87866.0,0.18111]
[1765910917551,0.1694,87861.0,87860.0,0.17325999]
[1765910917851,0.1694,87861.0,87860.0,0.20295143]
[1765910918244,0.1694,87861.0,87860.0,0.21433563]
[1765910918650,0.71476,87867.0,87866.0,0.17226]
[1765910918951,0.8955033,87867.0,87866.0,0.56376505]
[1765910920653,0.88412,87867.0,87866.0,0.56376505]
[1765910920857,0.71472,87867.0,87866.0,0.56376505]
[1765910922948,0.71472,87867.0,87866.0,0.56476505]
[1765910923847,0.80072,87867.0,87866.0,0.56476505]
[1765910925255,0.8955033,87867.0,87866.0,0.56476505]
[1765910925646,0.88412,87867.0,87866.0,0.56376505]
[1765910926256,0.88412,87867.0,87866.0,0.53306]
[1765910926653,0.88412,87867.0,87866.0,0.3608]
[1765910927350,0.88412,87867.0,87866.0,0.53306]
[1765910927351,0.71472,87867.0,87866.0,0.53306]
[1765910928252,0.80072,87867.0,87866.0,0.53306]
[1765910928447,0.88412,87867.0,87866.0,0.53306]
[1765910928950,0.88412,87867.0,87866.0,0.4473]
[1765910929458,0.88412,87867.0,87866.0,0.3618]
[1765910930560,0.88412,87867.0,87866.0,0.3608]
[1765910930959,0.1694,87859.0,87858.0,0.08777641]
[1765910931163,0.1694,87859.0,87858.0,0.11852598]
[1765910931355,0.1694,87859.0,87858.0,0.56608598]
[1765910932063,0.1694,87859.0,87858.0,0.56808598]
[1765910932752,0.88412,87867.0,87866.0,0.17226]
[1765910933065,0.1694,87867.0,87866.0,0.17226]
[1765910933260,0.05359,87880.0,87871.0,0.19705]
[1765910933261,0.19741797,87872.0,87871.0,0.19705]
[1765910933465,0.7258,87872.0,87871.0,0.19705]
[1765910933663,0.541582,87878.0,87877.0,0.17226]
[1765910933962,0.0778435,87878.0,87870.0,0.00099999]
[1765910934162,0.2303428,87871.0,87870.0,0.08649999]
[1765910934349,0.2303428,87871.0,87870.0,0.17325999]
[1765910934548,0.2303428,87871.0,87870.0,0.08649999]
[1765910934753,0.2303428,87871.0,87870.0,0.0855]
[1765910935554,0.1694,87870.0,87869.0,0.0001137]
[1765910936252,0.1694,87870.0,87869.0,0.03089218]
[1765910937958,0.5302,87870.0,87869.0,0.0001137]
[1765910941866,0.5302,87870.0,87858.0,0.36307641]
[1765910941867,0.1807843,87859.0,87858.0,0.36307641]
[1765910942068,0.8953843,87859.0,87858.0,0.00227641]
[1765910942572,0.884,87859.0,87858.0,0.17453641]
[1765910943170,0.884,87859.0,87858.0,0.20597436]
[1765910943366,0.884,87859.0,87858.0,0.20797436]
[1765910944062,0.1694,87859.0,87858.0,0.20797436]
[1765910947362,0.884,87859.0,87858.0,0.20797436]
[1765910948174,0.884,87859.0,87858.0,0.00527641]
[1765910952162,0.1655956,87849.0,87848.0,0.3608]
[1765910952369,0.15421,87849.0,87848.0,0.55302486]
[1765910952669,0.1655956,87849.0,87848.0,0.55302486]
[1765910953177,0.1655956,87849.0,87848.0,0.55602486]
[1765910953868,0.1655956,87849.0,87848.0,0.47422486]
[1765910954070,0.1655956,87849.0,87848.0,0.39402486]
[1765910954269,0.1655956,87849.0,87848.0,0.47622486]
[1765910954972,0.15421,87849.0,87848.0,0.55802486]
[1765910955766,0.1655948,87856.0,87855.0,0.162]
[1765910956166,0.7842748,87856.0,87855.0,0.162]
[1765910956371,0.15421,87851.0,87850.0,0.16299999]
[1765910956677,0.15421,87851.0,87850.0,0.19219291]
[1765910958077,0.15421,87851.0,87850.0,0.19419291]
[1765910958579,0.15421,87851.0,87850.0,0.19619291]
[1765910958976,0.61868,87856.0,87855.0,0.1733848]
[1765910959778,6.536e-05,87857.0,87856.0,0.162]
[1765910959987,0.003,87871.0,87870.0,0.1733829]
[1765910960177,0.003,87871.0,87870.0,0.56439578]
[1765910961682,0.15721,87871.0,87870.0,0.56439578]
[1765910962284,0.15721,87871.0,87870.0,0.56539578]
[1765910962582,0.15721,87871.0,87870.0,0.56639578]
[1765910963381,0.003,87871.0,87870.0,0.56539578]
[1765910963780,0.003,87871.0,87870.0,0.56439578]
[1765910964991,0.003,87871.0,87870.0,0.56539578]
[1765910964992,0.15721,87871.0,87870.0,0.56539578]
[1765910965177,0.15721,87871.0,87870.0,0.5238]
[1765910965687,0.15721,87871.0,87870.0,0.5228]
[1765910966077,0.15721,87871.0,87870.0,0.441]
[1765910966286,0.15721,87871.0,87870.0,0.5228]
[1765910968685,0.08128,87871.0,87870.0,0.5228]
[1765910969079,0.15721,87871.0,87870.0,0.5228]
[1765910970490,0.003,87871.0,87870.0,0.5228]
[1765910971290,0.08128,87871.0,87870.0,0.5228]
[1765910971884,0.20658,87871.0,87870.0,0.5228]
[1765910975694,0.20658,87871.0,87870.0,0.5341829]
[1765910977892,0.2179628,87871.0,87870.0,0.5228]
[1765910978492,0.20658,87871.0,87870.0,0.5341829]
[1765910978796,0.20658,87871.0,87870.0,0.5228]
[1765910986399,0.20658,87871.0,87870.0,0.55311182]
[1765910990393,0.20658,87871.0,87870.0,0.03031182]
[1765910990992,0.20658,87871.0,87862.0,0.07934065]
[1765910990993,0.16013,87863.0,87862.0,0.07934065]
[1765910991192,0.1715138,87863.0,87862.0,0.10970905]
[1765910991497,0.1715138,87863.0,87862.0,0.03053905]
[1765910992096,0.1715138,87863.0,87862.0,0.10970905]
[1765910992291,0.1715138,87863.0,87862.0,0.11070905]
[1765910992495,0.1715138,87863.0,87862.0,0.03153905]
[1765910993002,0.1715138,87863.0,87862.0,0.11070905]
[1765910993793,0.1715138,87863.0,87862.0,0.08034065]
[1765910994198,0.1715138,87863.0,87862.0,0.00117065]
[1765910994502,0.1715138,87863.0,87862.0,0.08034065]
[1765910994695,0.19999279,87863.0,87862.0,0.08034065]
[1765910995297,0.19999279,87863.0,87862.0,0.16264065]
[1765910996797,0.19999279,87863.0,87862.0,0.00117065]
[1765910997204,0.19999279,87863.0,87862.0,0.16264065]
[1765910997405,0.19999279,87863.0,87862.0,0.08034065]
[1765910998596,0.19999279,87863.0,87862.0,0.16264065]
[1765910998903,0.19999279,87863.0,87862.0,0.08034065]
[1765910999108,0.003,87871.0,87870.0,0.1271729]
[1765910999402,6.5e-07,87879.0,87878.0,0.1728519]
[1765910999598,0.15557064,87900.0,87897.0,0.1728494]
[1765910999796,0.76495,87905.0,87897.0,0.5336494]
[1765911000001,0.76495,87905.0,87897.0,0.56393569]
[1765911000002,0.71428,87905.0,87897.0,0.56393569]
[1765911001094,0.71428,87905.0,87897.0,0.59429638]
[1765911001305,0.71428,87905.0,87897.0,0.56593569]
[1765911001807,0.71428,87905.0,87897.0,0.56393569]
[1765911002004,0.71428,87905.0,87897.0,0.56593569]
[1765911002903,0.71428,87905.0,87897.0,0.56793569]
[1765911003106,0.011379,87901.0,87897.0,0.56793569]
[1765911003304,0.71428,87905.0,87897.0,0.56793569]
[1765911003610,0.71428,87905.0,87897.0,0.56393569]
[1765911003903,0.00017065,87906.0,87897.0,0.56393569]
[1765911004506,0.00017065,87906.0,87897.0,0.56593569]
[1765911004907,0.0113787,87903.0,87897.0,0.56493569]
[1765911005210,0.0113787,87903.0,87897.0,0.56693569]
[1765911005510,0.0113787,87903.0,87897.0,0.5366494]
[1765911005999,0.0113785,87905.0,87897.0,0.5366494]
[1765911006400,0.0113785,87905.0,87897.0,0.5356494]
[1765911006601,0.0113785,87905.0,87897.0,0.5376494]
[1765911007200,0.0113785,87905.0,87897.0,0.5356494]
[1765911007407,0.0113785,87905.0,87897.0,0.5366494]
[1765911007895,0.0113785,87905.0,87897.0,0.5346494]
[1765911008102,0.0113785,87905.0,87897.0,0.5356494]
[1765911008610,0.00017065,87906.0,87897.0,0.5356494]
[1765911009304,0.00017065,87906.0,87905.0,0.1678084]
[1765911009501,0.00017065,87906.0,87905.0,0.5286084]
[1765911010210,0.35656,87917.0,87916.0,0.1640369]
[1765911010402,0.35656,87917.0,87916.0,0.5248369]
[1765911012510,0.0113768,87918.0,87917.0,0.15266]
[1765911013419,0.0113768,87918.0,87916.0,0.3608]
[1765911013420,0.15256,87917.0,87916.0,0.3608]
[1765911013605,0.15256,87909.0,87908.0,0.07557065]
[1765911013805,0.15256,87909.0,87908.0,0.15283065]
[1765911014816,0.15356,87909.0,87908.0,0.15283065]
[1765911016414,0.15356,87909.0,87908.0,0.16420865]
[1765911016415,0.002,87909.0,87908.0,0.16420865]
[1765911017505,0.001,87909.0,87908.0,0.16520865]
[1765911018612,0.8025963,87921.0,87920.0,0.1640364]
[1765911018817,0.79122,87921.0,87920.0,0.5248364]
[1765911019818,0.79222,87921.0,87920.0,0.5248364]
[1765911020719,0.86756,87921.0,87920.0,0.5248364]
[1765911021714,0.001,87921.0,87920.0,0.8856364]
[1765911022622,0.00017065,87925.0,87924.0,0.1640359]
[1765911025622,0.00017065,87925.0,87924.0,0.1650359]
[1765911026008,0.00017065,87925.0,87924.0,0.1660359]
[1765911026214,0.00017065,87925.0,87924.0,0.1650359]
[1765911026615,0.00017065,87925.0,87924.0,0.1640359]
[1765911026814,0.00017065,87925.0,87924.0,0.1650359]
[1765911027220,0.07949434,87938.0,87937.0,0.1640342]
[1765911027418,0.07949434,87938.0,87937.0,0.5248342]
[1765911027919,0.00227434,87938.0,87937.0,0.5248342]
[1765911028718,0.00327434,87938.0,87937.0,0.5248342]
[1765911029218,0.00327434,87938.0,87937.0,0.55522818]
[1765911029427,0.07949434,87938.0,87937.0,0.5248342]
[1765911029623,0.07949434,87938.0,87937.0,0.55522092]
[1765911030023,0.00227434,87938.0,87937.0,0.91602092]
[1765911030320,0.00017065,87946.0,87945.0,0.1640332]
[1765911030522,0.00017065,87946.0,87945.0,0.55521992]
[1765911032021,0.00017065,87946.0,87945.0,0.58536913]
[1765911032223,0.0885913,87960.0,87959.0,0.1640314]
[1765911032428,0.0885913,87960.0,87959.0,0.5248314]
[1765911033128,0.1639313,87960.0,87959.0,0.51346]
[1765911034815,0.1639313,87960.0,87959.0,0.4362]
[1765911035023,0.1469223,87952.0,87951.0,0.00017055]
[1765911036620,0.1479223,87952.0,87951.0,0.00017055]
[1765911037723,0.13655,87952.0,87951.0,0.00017055]
[1765911037922,0.13655,87952.0,87951.0,0.14339055]
[1765911039326,0.17938,87955.0,87954.0,0.14322]
[1765911040223,0.13555,87952.0,87951.0,0.00117055]
[1765911040433,0.13555,87952.0,87951.0,0.07422055]
[1765911040835,0.13555,87952.0,87951.0,0.00017055]
[1765911041425,0.13655,87952.0,87951.0,0.00017055]
[1765911041725,0.1479223,87952.0,87951.0,0.00017055]
[1765911041926,0.13555,87937.0,87936.0,0.50273]
[1765911043436,0.1469242,87937.0,87936.0,0.50273]
[1765911044133,0.146925,87931.0,87930.0,0.14072]
[1765911044322,0.13555,87929.0,87928.0,0.36097055]
[1765911044626,0.13555,87929.0,87928.0,0.50169055]
[1765911045537,0.13655,87929.0,87928.0,0.43174055]
[1765911045836,0.13655,87929.0,87928.0,0.36097055]
[1765911046132,0.13655,87929.0,87928.0,0.00017055]
[1765911046527,0.13655,87929.0,87928.0,0.00117055]
[1765911046929,0.13555,87929.0,87928.0,0.00117055]
[1765911047130,0.13655,87929.0,87928.0,0.00117055]
[1765911047432,0.13755,87929.0,87928.0,0.00017055]
[1765911047631,0.13855,87929.0,87928.0,0.00017055]
[1765911048029,0.13755,87929.0,87928.0,0.00017055]
[1765911048230,0.13855,87929.0,87928.0,0.00017055]
[1765911049534,0.13755,87929.0,87928.0,0.00017055]
[1765911049740,0.13855,87929.0,87928.0,0.00017055]
[1765911050541,0.13755,87929.0,87928.0,0.00017055]
[1765911051930,0.13655,87929.0,87928.0,0.00017055]
[1765911053426,0.13855,87929.0,87928.0,0.00017055]
[1765911055143,0.13855,87929.0,87919.0,0.42491]
[1765911055144,0.1907564,87920.0,87919.0,0.42491]
[1765911055538,0.1907564,87920.0,87919.0,0.3608]
[1765911055840,0.1907564,87920.0,87919.0,0.42491]
[1765911056037,0.1907575,87912.0,87911.0,0.48805055]
[1765911056237,0.1907575,87912.0,87911.0,0.12725055]
[1765911056442,0.1907575,87912.0,87911.0,0.06371055]
[1765911056740,0.1907575,87912.0,87911.0,0.00017055]
[1765911056941,0.1469288,87902.0,87898.0,0.00227538]
[1765911057149,0.13555,87902.0,87901.0,0.4867]
[1765911057948,0.17938,87906.0,87905.0,0.12478]
[1765911058143,0.04383,87912.0,87911.0,0.12478]
[1765911058331,0.07287608,87912.0,87911.0,0.12478]
[1765911058642,0.20842608,87912.0,87911.0,0.12478]
[1765911059744,0.02904608,87912.0,87911.0,0.48558]
[1765911059949,0.89311055,87920.0,87919.0,0.12301]
[1765911060149,0.92131514,87920.0,87919.0,0.48381]
[1765911060454,0.02837514,87920.0,87919.0,0.48381]
[1765911061167,0.02837514,87920.0,87919.0,0.48481]
[1765911061749,0.00017055,87920.0,87919.0,0.48481]
[1765911061951,0.00017055,87920.0,87919.0,0.48581]
[1765911062352,0.1907528,87948.0,87947.0,0.12006]
[1765911062554,0.1234428,87948.0,87947.0,0.12006]
[1765911062856,0.1907528,87948.0,87947.0,0.12006]
[1765911063064,0.21959658,87948.0,87947.0,0.12006]
[1765911063962,0.22059658,87948.0,87947.0,0.12006]
[1765911064158,0.02984378,87948.0,87947.0,0.12006]
[1765911064362,0.001,87948.0,87947.0,0.1314329]
[1765911064558,0.3608,87951.0,87950.0,0.1292325]
[1765911064754,0.00017065,87956.0,87955.0,0.11786]
[1765911065460,0.06261065,87956.0,87955.0,0.11786]
[1765911065665,0.00017065,87956.0,87955.0,0.11786]
[1765911066862,0.06261065,87956.0,87955.0,0.11786]
[1765911067066,0.00017065,87956.0,87955.0,0.11786]
[1765911067359,0.00017065,87956.0,87955.0,0.11986]
[1765911067958,0.00017065,87956.0,87955.0,0.11786]
[1765911068159,0.00017065,87956.0,87955.0,0.11886]
[1765911070568,0.00017065,87956.0,87955.0,0.11986]
[1765911071067,0.00017065,87956.0,87955.0,0.14645]
[1765911071366,0.00017065,87956.0,87955.0,0.11986]
[1765911072368,0.0738106,87966.0,87965.0,0.10866]
[1765911072768,0.1374606,87966.0,87965.0,0.10866]
[1765911073564,0.1374606,87966.0,87965.0,0.10966]
[1765911074158,0.1374606,87966.0,87965.0,0.10866]
[1765911074359,0.1374606,87966.0,87965.0,0.10966]
[1765911075671,0.1374606,87966.0,87965.0,0.001]
[1765911075967,0.1374611,87961.0,87960.0,0.00099999]
[1765911076161,0.1374611,87961.0,87960.0,0.05309999]
[1765911076360,0.1374611,87961.0,87960.0,0.1042]
[1765911076560,0.12609,87961.0,87960.0,0.1042]
[1765911076962,0.04039,87962.0,87961.0,0.10364]
[1765911077273,0.16648,87962.0,87961.0,0.10364]
[1765911078172,0.001,87966.0,87965.0,0.10196]
[1765911078673,0.10627,87969.0,87968.0,0.10196]
[1765911078872,0.16992,87969.0,87968.0,0.10196]
[1765911079868,0.04383,87969.0,87968.0,0.10196]
[1765911080457,0.16992,87969.0,87968.0,0.10296]
[1765911081971,0.16992,87969.0,87968.0,0.10196]
[1765911082166,0.16992,87969.0,87968.0,0.10396]
[1765911082565,0.17092,87969.0,87968.0,0.10396]
[1765911082875,0.17092,87969.0,87968.0,0.10296]
[1765911083365,0.10727,87969.0,87968.0,0.10296]
[1765911083576,0.06942274,87976.0,87966.0,0.0113704]
[1765911083577,0.02903274,87976.0,87973.0,0.1077696]
[1765911083964,0.06942274,87976.0,87973.0,0.1077696]
[1765911084165,0.13181819,87976.0,87975.0,0.0953]
[1765911084966,0.19546819,87976.0,87975.0,0.0953]
[1765911085970,0.06937819,87976.0,87975.0,0.0973]
[1765911087175,0.16648,87976.0,87975.0,0.0973]
[1765911087373,0.04039,87976.0,87975.0,0.0973]
[1765911087775,0.16648,87976.0,87975.0,0.002]
[1765911088078,0.12609,87973.0,87972.0,0.3608]
[1765911088278,0.1374596,87973.0,87972.0,0.3608]
[1765911089471,0.1384596,87973.0,87972.0,0.3608]
[1765911091483,0.1374596,87973.0,87972.0,0.3608]
[1765911091681,0.1394596,87973.0,87972.0,0.3608]
[1765911092173,0.1404596,87973.0,87972.0,0.3608]
[1765911092368,0.20189445,87973.0,87972.0,0.3608]
[1765911092565,0.1384596,87973.0,87972.0,0.3608]
[1765911092766,0.1404596,87973.0,87972.0,0.3608]
[1765911095680,0.1414596,87973.0,87972.0,0.3608]
[1765911097182,0.1384596,87973.0,87972.0,0.3608]
[1765911097480,0.1394596,87973.0,87972.0,0.3608]
[1765911097684,0.1404596,87973.0,87972.0,0.3608]
[1765911098280,0.1394596,87973.0,87972.0,0.3608]
[1765911098475,0.1404596,87973.0,87972.0,0.56037]
[1765911098974,0.1384596,87973.0,87972.0,0.62027]
[1765911099176,0.1404596,87973.0,87972.0,0.62027]
[1765911099576,0.12909,87973.0,87972.0,0.62027]
[1765911100591,0.12809,87973.0,87972.0,0.62027]
[1765911100784,0.12709,87973.0,87972.0,0.62027]
[1765911101691,0.12709,87973.0,87972.0,0.62127]
[1765911102191,0.12609,87973.0,87972.0,0.62127]
[1765911102390,0.12709,87973.0,87972.0,0.62027]
[1765911102593,0.12709,87973.0,87972.0,0.62127]
[1765911103181,0.001,87973.0,87972.0,0.98207]
[1765911103783,0.76682772,87982.0,87981.0,0.19957]
[1765911103985,0.61163949,87982.0,87981.0,0.56037]
[1765911104598,0.70590949,87982.0,87981.0,0.56037]
[1765911104795,0.80825949,87982.0,87981.0,0.56037]
[1765911105294,0.80625949,87982.0,87981.0,0.56137]
[1765911107489,0.80725949,87982.0,87981.0,0.56137]
[1765911107885,0.80625949,87982.0,87981.0,0.56137]
[1765911108092,0.80725949,87982.0,87981.0,0.56137]
[1765911108488,0.80625949,87982.0,87981.0,0.56137]
[1765911108687,0.80725949,87982.0,87981.0,0.56137]
[1765911110493,0.80625949,87982.0,87981.0,0.56137]
[1765911110693,0.80725949,87982.0,87981.0,0.5717385]
[1765911110899,0.80725949,87982.0,87981.0,0.56137]
[1765911111092,0.80625949,87982.0,87981.0,0.56137]
[1765911111301,0.80725949,87982.0,87981.0,0.56137]
[1765911111495,0.80725949,87982.0,87981.0,0.56037]
[1765911111693,0.80725949,87982.0,87981.0,0.56137]
[1765911111893,0.80625949,87982.0,87981.0,0.56137]
[1765911113703,0.80725949,87982.0,87981.0,0.56137]
[1765911114594,0.80725949,87982.0,87981.0,0.5727385]
[1765911115402,0.80725949,87982.0,87981.0,0.56137]
[1765911115803,0.80725949,87982.0,87981.0,0.56037]
[1765911116002,0.80725949,87982.0,87981.0,0.56137]
[1765911116903,0.80625949,87982.0,87981.0,0.56137]
[1765911117304,0.02893773,87982.0,87981.0,0.56137]
[1765911117502,0.001,87982.0,87981.0,0.56137]
[1765911118501,0.02863944,87984.0,87983.0,0.19957]
[1765911118904,0.12290944,87984.0,87983.0,0.19957]
[1765911119204,0.23462764,87984.0,87983.0,0.19957]
[1765911119996,0.22325944,87984.0,87983.0,0.19957]
[1765911120200,0.12390944,87984.0,87983.0,0.19957]
[1765911120511,0.02963944,87984.0,87983.0,0.19957]
[1765911120704,0.12390944,87984.0,87983.0,0.19957]
[1765911121012,0.22425944,87984.0,87983.0,0.19957]
[1765911121311,0.22325944,87984.0,87983.0,0.001]
[1765911121813,0.08989884,87984.0,87983.0,0.20057]
[1765911122108,0.02886,88000.0,87983.0,0.20057]
[1765911122109,0.0113648,88010.0,88009.0,0.19957]
[1765911122305,0.1017912,88029.0,88009.0,0.19957]
[1765911122306,0.1056344,88014.0,88013.0,0.19957]
[1765911122610,0.20825618,88018.0,88017.0,0.19957]
[1765911122812,0.20825618,88018.0,88017.0,0.56037]
[1765911124104,0.21125618,88018.0,88017.0,0.56037]
[1765911124307,0.21125618,88018.0,88017.0,0.46425]
[1765911124914,0.21325618,88018.0,88017.0,0.46425]
[1765911125913,0.21021618,88018.0,88017.0,0.55762]
[1765911126520,0.21021618,88018.0,88009.0,0.36097044]
[1765911126521,0.07528,88010.0,88009.0,4.3e-07]
[1765911126726,0.07494,87988.0,87987.0,0.18493]
[1765911127017,0.3608,87997.0,87996.0,0.18493]
[1765911127220,0.03712,88004.0,88003.0,0.18493]
[1765911127410,0.31832,88011.0,88003.0,0.18493]
[1765911127411,0.4039247,88011.0,88010.0,0.18493]
[1765911127714,0.3668047,88011.0,88010.0,0.18493]
[1765911127920,0.3668047,88011.0,88004.0,0.05714]
[1765911127921,0.3608,88016.0,88015.0,0.18493]
[1765911128120,0.00227228,88018.0,88017.0,0.18493]
[1765911128315,0.71288,88030.0,88011.0,0.41794]
[1765911128316,0.3608,88034.0,88033.0,0.18493]
[1765911128822,0.55001,88034.0,88033.0,0.18493]
[1765911129317,0.2005727,88026.0,88025.0,0.24224044]
[1765911129515,0.5613727,88026.0,88025.0,0.05731044]
[1765911129708,0.5613727,88026.0,88025.0,0.24224044]
[1765911130216,0.2005727,88026.0,88025.0,0.24224044]
[1765911130616,0.2015727,88026.0,88025.0,0.24224044]
[1765911130818,0.2015727,88026.0,88025.0,0.14887044]
[1765911131122,0.2015727,88026.0,88025.0,0.00017044]
[1765911131123,0.5623727,88026.0,88025.0,0.00017044]
[1765911131423,0.31761397,88026.0,88025.0,0.24224044]
[1765911131622,0.18938044,88042.0,88041.0,0.18493]
[1765911132123,0.18938044,88042.0,88039.0,0.05714]
[1765911132124,0.18921,88040.0,88039.0,0.24207]
[1765911132326,0.2005709,88040.0,88039.0,0.05714]
[1765911132516,0.18921,88033.0,88032.0,0.24207]
[1765911133215,0.0919,88033.0,88032.0,0.24207]
[1765911133534,0.2015709,88040.0,88039.0,0.18493]
[1765911133713,0.0929,88040.0,88039.0,0.18493]
[1765911133921,0.0919,88041.0,88040.0,0.24207]
[1765911134227,0.00017044,88042.0,88041.0,0.18493]
[1765911134424,0.18938044,88042.0,88041.0,0.18493]
[1765911135424,0.18938044,88042.0,88040.0,0.05714]
[1765911135425,0.18921,88033.0,88032.0,0.24207]
[1765911137525,0.55001,88033.0,88032.0,0.24307]
[1765911137730,0.18921,88033.0,88032.0,0.24307]
[1765911138127,0.18921,88033.0,88032.0,0.24207]
[1765911138328,0.18921,88033.0,88032.0,0.24307]
[1765911138928,0.18921,88033.0,88032.0,0.24207]
[1765911139134,0.18921,88033.0,88032.0,0.24307]
[1765911139723,0.18921,88033.0,88032.0,0.05814]
[1765911140433,0.18921,88026.0,88019.0,0.3608]
[1765911140632,0.18921,88026.0,88025.0,0.24224044]
[1765911140826,0.001,88033.0,88032.0,0.24207]
[1765911141029,4.4e-07,88042.0,88041.0,0.18493]
[1765911141331,0.3608,88068.0,88057.0,0.18493]
[1765911141533,0.38915592,88068.0,88057.0,0.18493]
[1765911141734,0.00204,88075.0,88074.0,0.18493]
[1765911142127,0.19125,88075.0,88074.0,0.18493]
[1765911143229,0.19325,88075.0,88074.0,0.18493]
[1765911143439,0.19121,88075.0,88074.0,0.18493]
[1765911144739,0.19221,88075.0,88074.0,0.18493]
[1765911145347,0.18921,88067.0,88066.0,0.18510033]
[1765911145842,0.18921,88067.0,88066.0,0.00017033]
[1765911146336,0.18921,88067.0,88066.0,0.18510033]
[1765911146837,0.19021,88067.0,88066.0,0.00017033]
[1765911147229,0.19021,88067.0,88066.0,0.09173033]
[1765911147430,0.001,88067.0,88066.0,0.18510033]
[1765911147636,0.2015674,88067.0,88066.0,0.00017033]
[1765911148235,0.2005674,88067.0,88066.0,0.18510033]
[1765911148544,0.2015674,88067.0,88066.0,0.18510033]
[1765911148935,0.2015674,88067.0,88066.0,0.09173033]
[1765911149233,0.2015674,88067.0,88066.0,0.00017033]
[1765911149630,0.2025674,88067.0,88066.0,0.00017033]
[1765911150826,0.2025674,88067.0,88066.0,0.09173033]
[1765911151025,0.2025674,88067.0,88066.0,0.18510033]
[1765911153045,0.2025674,88067.0,88066.0,0.00017033]
[1765911153744,0.2025674,88067.0,88066.0,0.20981033]
[1765911153942,0.2025674,88067.0,88066.0,0.11919033]
[1765911154330,0.2025674,88067.0,88066.0,0.23727033]
[1765911154542,0.2025674,88067.0,88066.0,0.00017033]
[1765911155936,0.002,88067.0,88066.0,0.21973033]
[1765911156137,0.1925,88067.0,88066.0,0.58053033]
[1765911156330,0.2038574,88067.0,88066.0,0.21973033]
[1765911157637,0.002,88067.0,88066.0,0.21973033]
[1765911158032,0.002,88067.0,88066.0,0.25338613]
[1765911159742,0.09525,88067.0,88066.0,0.25338613]
[1765911160062,0.1885,88067.0,88066.0,0.00017033]
[1765911160538,0.1885,88067.0,88066.0,0.21973033]
[1765911160940,0.1885,88067.0,88066.0,0.00017033]
[1765911161344,0.09525,88067.0,88066.0,0.21973033]
[1765911161547,0.18716,88067.0,88066.0,0.21973033]
[1765911162338,0.27694607,88067.0,88066.0,0.21973033]
[1765911164553,0.18716,88067.0,88066.0,0.21973033]
[1765911166335,0.18716,88067.0,88066.0,0.25294479]
[1765911166540,0.18716,88067.0,88066.0,0.25289859]
[1765911166740,0.18716,88067.0,88066.0,0.14210859]
[1765911167038,0.18716,88067.0,88066.0,0.03333859]
[1765911167238,0.18716,88067.0,88066.0,0.25289859]
[1765911167449,0.002,88067.0,88066.0,0.25289859]
[1765911168042,0.17709,88067.0,88066.0,0.03333859]
[1765911168343,0.1884474,88067.0,88066.0,0.03333859]
[1765911168944,0.1884474,88067.0,88066.0,0.00017033]
[1765911170138,0.1884474,88067.0,88066.0,0.03314198]